lending/lending_fUSD_20240926
["ID","MTS","AMOUNT","RATE_DAILY","PERIOD"]
[339214983,1727347133589,500.34555121,0.00021,60]
[339214984,1727347142246,500.0,0.00021,60]
[339214985,1727347144638,500.0,0.00021,60]
[339214986,1727347145115,500.0,0.00021,60]
[339214987,1727347147202,500.53798397,0.00021,60]
[339214988,1727347148994,500.0,0.00021,60]
[339214989,1727347150944,500.0,0.00021,60]
[339214990,1727347151323,500.0,0.00021,60]
[339214991,1727347156808,500.60161027,0.00021,60]
[339214992,1727347159224,500.0,0.00021,60]
[339214993,1727347159316,500.0,0.00021,60]
[339214994,1727347159506,500.0,0.00021,60]
[339214995,1727347159768,500.0,0.00021,60]
[339214996,1727347160169,468.73,0.00021,60]
[339214997,1727347161647,500.53668435,0.00021,60]
[339214998,1727347163708,500.0,0.00021,60]
[339214999,1727347165055,231.93,0.00010959,2]
[339215000,1727347166077,500.0,0.00021,60]
[339215001,1727347168660,500.45218846,0.00021,60]
[339215002,1727347171038,500.50897337,0.00021,60]
[339215003,1727347172547,500.0,0.00021,60]
[339215004,1727347176459,500.0,0.00021,60]
[339215005,1727347177037,407.59,0.00021,60]
[339215006,1727347178367,500.0,0.00021,60]
[339215007,1727347182537,152.60677044,0.00021,60]
[339215008,1727347189172,500.0,0.00021,60]
[339215009,1727347193490,501.6297229,0.00021,60]
[339215010,1727347196013,500.19575184,0.00021,60]
[339215011,1727347198084,500.55141919,0.00021,60]
[339215012,1727347198707,500.0,0.00021,60]
[339215013,1727347198993,385.46,0.00021,60]
[339215014,1727347208170,567.16,0.00021,60]
[339215015,1727347210219,500.0,0.00021,60]
[339215016,1727347210405,500.0,0.00021,60]
[339215017,1727347210476,254.46,0.00021,60]
[339215018,1727347210674,500.0,0.00021,60]
[339215019,1727347210915,500.0,0.00021,60]
[339215020,1727347210982,500.0,0.00021,60]
[339215021,1727347211212,500.0,0.00021,60]
[339215022,1727347211478,500.0,0.00021,60]
[339215023,1727347211547,500.0,0.00021,60]
[339215024,1727347211769,500.0,0.00021,60]
[339215025,1727347212087,263.19,0.00021,60]
[339215026,1727347212939,500.0,0.00021,60]
[339215027,1727347215340,500.0,0.00021,60]
[339215028,1727347215654,324.67,0.00021,60]
[339215029,1727347216858,500.2229469,0.00021,60]
[339215030,1727347228522,500.0,0.00021,60]
[339215031,1727347233034,500.0,0.00021,60]
[339215032,1727347233324,500.0,0.00021,60]
[339215033,1727347233615,500.0,0.00021,60]
[339215034,1727347233871,500.0,0.00021,60]
[339215035,1727347234258,500.0,0.00021,60]
[339215036,1727347234919,500.0,0.00021,60]
[339215037,1727347235224,500.0,0.00021,60]
[339215038,1727347235487,500.0,0.00021,60]
[339215039,1727347236159,500.0,0.00021,60]
[339215040,1727347236463,475.74,0.00021,60]
[339215041,1727347240061,500.0,0.00021,60]
[339215042,1727347252233,300.0,0.00021,60]
[339215043,1727347254276,500.0,0.00021,60]
[339215044,1727347256406,507.1555237,0.00021,60]
[339215045,1727347256436,150.0,0.0001389,30]
[339215046,1727347264654,500.18493796,0.00021,60]
[339215047,1727347265578,517.76795904,0.00021,60]
[339215048,1727347267448,500.0,0.00021,60]
[339215049,1727347273113,500.0,0.00021,60]
[339215050,1727347275433,500.0,0.00021,60]
[339215051,1727347275629,500.0,0.00021,60]
[339215052,1727347277548,500.0,0.00021,60]
[339215053,1727347291329,500.44351847,0.00021,60]
[339215054,1727347312417,643.9067907,0.00021,60]
[339215055,1727347312746,150.0,0.00021,60]
[339215056,1727347313218,504.78797891,0.00021,60]
[339215057,1727347317496,500.0,0.00021,60]
[339215058,1727347320266,505.03492812,0.00021,60]
[339215059,1727347325904,12837.11740745,0.00012,28]
[339215060,1727347328699,500.0,0.00021,60]
[339215061,1727347332386,500.0,0.00021,60]
[339215062,1727347336146,500.0,0.00021,60]
[339215063,1727347336366,500.0,0.00021,60]
[339215064,1727347338179,501.98465584,0.00021,60]
[339215065,1727347338343,504.8337596,0.00021,60]
[339215066,1727347340246,500.0,0.00021,60]
[339215067,1727347342347,500.0,0.00021,60]
[339215068,1727347345084,519.44510642,0.00021,60]
[339215069,1727347349775,500.0,0.00021,60]
[339215070,1727347350031,500.0,0.00021,60]
[339215071,1727347352059,500.0,0.00021,60]
[339215072,1727347352790,499.95930949,0.00021,60]
[339215073,1727347354972,502.98328374,0.00021,60]
[339215074,1727347357005,500.0,0.00021,60]
[339215075,1727347357540,500.0,0.00021,60]
[339215076,1727347360399,500.0,0.00021,60]
[339215077,1727347360899,500.0,0.00021,60]
[339215078,1727347367621,500.0,0.00021,60]
[339215079,1727347368188,500.0,0.00021,60]
[339215080,1727347372408,500.0,0.00021,60]
[339215081,1727347372589,256.59320159,0.00021,60]
[339215082,1727347374256,505.0,0.00021,60]
[339215083,1727347374317,501.00776372,0.00021,60]
[339215084,1727347374487,500.0,0.00021,60]
[339215085,1727347374939,500.0,0.00021,60]
[339215086,1727347379507,500.55055492,0.00021,60]
[339215087,1727347381392,500.0,0.00021,60]
[339215088,1727347382139,500.0,0.00021,60]
[339215089,1727347382251,500.3355939,0.00021,60]
[339215090,1727347383282,500.0,0.00021,60]
[339215091,1727347386218,500.0,0.00021,60]
[339215092,1727347387366,319.305,0.00021,60]
[339215093,1727347390647,500.0,0.00021,60]
[339215094,1727347391436,500.0,0.00021,60]
[339215095,1727347392960,500.0,0.00021,60]
[339215096,1727347393991,432.83940002,0.00021,60]
[339215097,1727347395025,500.0,0.00021,60]
[339215098,1727347395283,500.0,0.00021,60]
[339215099,1727347395833,500.69289927,0.00021,60]
[339215100,1727347397562,500.0,0.00021,60]
[339215101,1727347399053,500.0,0.00021,60]
[339215102,1727347399327,500.0,0.00021,60]
[339215103,1727347401437,500.0,0.00021,60]
[339215104,1727347401721,500.0,0.00021,60]
[339215105,1727347401983,500.0,0.00021,60]
[339215106,1727347402250,500.0,0.00021,60]
[339215107,1727347403730,500.0,0.00021,60]
[339215108,1727347403987,500.0,0.00021,60]
[339215109,1727347404351,500.0,0.00021,60]
[339215110,1727347404608,500.0,0.00021,60]
[339215111,1727347405982,500.0,0.00021,60]
[339215112,1727347406269,500.0,0.00021,60]
[339215113,1727347406778,500.0,0.00021,60]
[339215114,1727347407058,500.0,0.00021,60]
[339215115,1727347407344,495.07599835,0.00021,60]
[339215116,1727347407441,500.0,0.00021,60]
[339215117,1727347408355,500.0,0.00021,60]
[339215118,1727347409355,500.0,0.00021,60]
[339215119,1727347409474,500.0,0.00021,60]
[339215120,1727347409757,500.0,0.00021,60]
[339215121,1727347410011,335.35139242,0.00021,60]
[339215122,1727347410382,500.0,0.00021,60]
[339215123,1727347410683,500.0,0.00021,60]
[339215124,1727347413782,500.0,0.00021,60]
[339215125,1727347415669,500.0,0.00021,60]
[339215126,1727347415969,616.44,0.00021,60]
[339215127,1727347416202,583.79114638,0.00021,60]
[339215128,1727347418045,500.0,0.00021,60]
[339215129,1727347418306,500.75,0.00021,60]
[339215130,1727347418547,500.0,0.00021,60]
[339215131,1727347420406,500.0,0.00021,60]
[339215132,1727347420502,633.69,0.00021,60]
[339215133,1727347420923,500.0,0.00021,60]
[339215134,1727347422414,500.0,0.00021,60]
[339215135,1727347422660,521.12837733,0.00021,60]
[339215137,1727347422940,500.0,0.00021,60]
[339215138,1727347423199,500.0,0.00021,60]
[339215139,1727347424714,500.0,0.00021,60]
[339215140,1727347424992,500.0,0.00021,60]
[339215141,1727347427093,500.0,0.00021,60]
[339215142,1727347427359,571.39,0.00021,60]
[339215143,1727347428766,500.0,0.00021,60]
[339215144,1727347429150,630.21,0.00021,60]
[339215145,1727347429461,500.0,0.00021,60]
[339215146,1727347429736,500.0,0.00021,60]
[339215147,1727347430802,500.0,0.00021,60]
[339215148,1727347432033,500.0,0.00021,60]
[339215149,1727347434073,500.0,0.00021,60]
[339215150,1727347434353,500.0,0.00021,60]
[339215151,1727347436612,500.0,0.00021,60]
[339215152,1727347437013,500.0,0.00021,60]
[339215153,1727347439050,500.0,0.00021,60]
[339215154,1727347441703,500.0,0.00021,60]
[339215155,1727347444206,500.0,0.00021,60]
[339215156,1727347445004,502.86293197,0.00021,60]
[339215157,1727347445805,500.0,0.00021,60]
[339215158,1727347448015,500.0,0.00021,60]
[339215159,1727347448211,500.0,0.00021,60]
[339215160,1727347448281,500.0,0.00021,60]
[339215161,1727347448470,500.0,0.00021,60]
[339215162,1727347450366,500.0,0.00021,60]
[339215163,1727347450654,500.0,0.00021,60]
[339215164,1727347451201,500.0,0.00021,60]
[339215165,1727347452447,500.0,0.00021,60]
[339215166,1727347452703,403.90487639,0.00021,60]
[339215167,1727347452858,500.0,0.00021,60]
[339215168,1727347453676,627.53055053,0.00021,60]
[339215169,1727347454903,500.0,0.00021,60]
[339215170,1727347457023,500.0,0.00021,60]
[339215171,1727347457744,500.0,0.00021,60]
[339215172,1727347457807,500.0,0.00021,60]
[339215173,1727347458014,500.0,0.00021,60]
[339215174,1727347459132,500.0,0.00021,60]
[339215175,1727347460066,500.0,0.00021,60]
[339215176,1727347460331,500.0,0.00021,60]
[339215177,1727347461124,500.0,0.00021,60]
[339215178,1727347463379,500.0,0.00021,60]
[339215179,1727347463727,500.0,0.00021,60]
[339215180,1727347465687,500.0,0.00021,60]
[339215181,1727347466305,500.0,0.00021,60]
[339215182,1727347466370,500.0,0.00021,60]
[339215183,1727347467965,501.10591923,0.00021,60]
[339215184,1727347468145,500.0,0.00021,60]
[339215185,1727347468768,500.0,0.00021,60]
[339215186,1727347472317,500.0,0.00021,60]
[339215187,1727347493041,500.0,0.00021,60]
[339215188,1727347498749,241.36,9.837e-05,2]
[339215189,1727347499480,504.24585324,0.00021,60]
[339215190,1727347509860,500.0,0.00021,60]
[339215191,1727347512614,503.36041854,0.00021,60]
[339215192,1727347516360,500.0,0.00021,60]
[339215193,1727347516747,500.0,0.00021,60]
[339215194,1727347517038,500.0,0.00021,60]
[339215195,1727347517549,500.0,0.00021,60]
[339215196,1727347517830,500.0,0.00021,60]
[339215197,1727347518090,500.0,0.00021,60]
[339215198,1727347518384,500.0,0.00021,60]
[339215199,1727347518627,500.0,0.00021,60]
[339215200,1727347518993,310.97,0.00021,60]
[339215201,1727347519788,500.0,0.00021,60]
[339215202,1727347524651,500.0,0.00021,60]
[339215203,1727347525015,384.53770671,0.00021,60]
[339215204,1727347532287,500.0,0.00021,60]
[339215205,1727347534283,500.0,0.00021,60]
[339215206,1727347541220,500.0,0.00021,60]
[339215207,1727347543239,500.0,0.00021,60]
[339215208,1727347543814,184.60502871,0.00021,60]
[339215209,1727347545172,500.0,0.00021,60]
[339215210,1727347547741,500.0,0.00021,60]
[339215211,1727347549766,500.0,0.00021,60]
[339215216,1727347551799,500.0,0.00021,60]
[339215217,1727347553096,500.0,0.00021,60]
[339215218,1727347553939,500.0,0.00021,60]
[339215219,1727347555808,632.92,0.00021,60]
[339215220,1727347556001,500.0,0.00021,60]
[339215221,1727347557979,500.0,0.00021,60]
[339215222,1727347559813,500.0,0.00021,60]
[339215223,1727347559951,500.0,0.00021,60]
[339215224,1727347562248,500.0,0.00021,60]
[339215225,1727347563375,500.0,0.00021,60]
[339215226,1727347564381,500.0,0.00021,60]
[339215227,1727347568461,500.0,0.00021,60]
[339215228,1727347570493,500.0,0.00021,60]
[339215229,1727347571749,500.0,0.00021,60]
[339215230,1727347574312,500.0,0.00021,60]
[339215231,1727347576317,500.0,0.00021,60]
[339215232,1727347578451,500.0,0.00021,60]
[339215233,1727347580531,500.0,0.00021,60]
[339215234,1727347582647,500.0,0.00021,60]
[339215235,1727347586917,500.0,0.00021,60]
[339215236,1727347591514,313.13947793,0.00021,60]
[339215237,1727347597988,500.0,0.00021,60]
[339215238,1727347606521,233.81048977,0.00021,60]
[339215239,1727347608533,500.0,0.00021,60]
[339215240,1727347612284,500.0,0.00021,60]
[339215241,1727347614432,632.17981323,0.00021,60]
[339215242,1727347618257,500.0,0.00021,60]
[339215243,1727347620161,500.0,0.00021,60]
[339215244,1727347622164,500.0,0.00021,60]
[339215245,1727347624114,500.0,0.00021,60]
[339215246,1727347631826,500.0,0.00021,60]
[339215247,1727347636249,500.0,0.00021,60]
[339215248,1727347638136,500.0,0.00021,60]
[339215249,1727347640716,500.19927514,0.00021,60]
[339215250,1727347642733,500.0,0.00021,60]
[339215251,1727347642992,500.0,0.00021,60]
[339215252,1727347643268,500.0,0.00021,60]
[339215253,1727347643468,500.61186681,0.00021,60]
[339215254,1727347643529,500.0,0.00021,60]
[339215255,1727347643806,500.0,0.00021,60]
[339215256,1727347644062,500.0,0.00021,60]
[339215257,1727347644330,500.0,0.00021,60]
[339215258,1727347644636,500.0,0.00021,60]
[339215259,1727347644919,500.0,0.00021,60]
[339215260,1727347645202,500.0,0.00021,60]
[339215261,1727347645372,500.53750671,0.00021,60]
[339215262,1727347645488,500.0,0.00021,60]
[339215263,1727347645781,500.0,0.00021,60]
[339215264,1727347646065,500.0,0.00021,60]
[339215265,1727347646342,500.0,0.00021,60]
[339215266,1727347646621,443.23709434,0.00021,60]
[339215267,1727347648289,500.29108694,0.00021,60]
[339215268,1727347650584,500.17665149,0.00021,60]
[339215269,1727347658447,501.0771478,0.00021,60]
[339215270,1727347660920,500.16772978,0.00021,60]
[339215271,1727347662935,500.63563093,0.00021,60]
[339215272,1727347665002,500.0,0.00021,60]
[339215273,1727347667269,500.0,0.00021,60]
[339215274,1727347671610,500.38513494,0.00021,60]
[339215275,1727347673525,501.01879094,0.00021,60]
[339215277,1727347675729,500.0,0.00021,60]
[339215278,1727347676022,512.58,0.00021,60]
[339215279,1727347677095,500.46274773,0.00021,60]
[339215280,1727347678997,500.59399695,0.00021,60]
[339215281,1727347681015,500.25445152,0.00021,60]
[339215282,1727347683100,500.0,0.00021,60]
[339215283,1727347686607,501.08549511,0.00021,60]
[339215284,1727347688836,500.61215351,0.00021,60]
[339215285,1727347690877,498.69858557,0.00021,60]
[339215286,1727347692873,500.63891063,0.00021,60]
[339215287,1727347694941,500.84226068,0.00021,60]
[339215288,1727347700972,500.23389886,0.00021,60]
[339215289,1727347702917,500.21886889,0.00021,60]
[339215290,1727347706645,500.56085593,0.00021,60]
[339215291,1727347724362,500.45638206,0.00021,60]
[339215292,1727347736133,401.89445158,0.00021,60]
[339215293,1727347741936,500.57070016,0.00021,60]
[339215294,1727347744055,500.45987004,0.00021,60]
[339215295,1727347746442,500.81931407,0.00021,60]
[339215296,1727347749488,500.69764038,0.00021,60]
[339215297,1727347751822,500.23564703,0.00021,60]
[339215298,1727347787440,150.0,0.0001389,30]
[339215299,1727347793604,404.45549407,0.00021,60]
[339215308,1727347831892,-250.0,0.00011543,2]
[339215309,1727347831902,-244.60842309,0.00011553,2]
[339215310,1727347832041,-365.06759219,0.00011553,2]
[339215311,1727347832053,-3007.4,0.00011553,2]
[339215312,1727347832065,-7199.14398472,0.00011553,2]
[339215313,1727347832075,-159.22,0.00011558,2]
[339215314,1727347832085,-150.0,0.00011589,2]
[339215315,1727347832093,-150.0,0.00011589,2]
[339215316,1727347832103,-150.0,0.00011589,2]
[339215317,1727347832113,-150.0,0.00011589,2]
[339215318,1727347832122,-150.0,0.00011661,2]
[339215319,1727347832133,-250.0,0.00011732,2]
[339215320,1727347832142,-150.0,0.00011732,2]
[339215321,1727347832151,-150.0,0.00011732,2]
[339215322,1727347832162,-300.0,0.00011749,2]
[339215323,1727347832171,-243.48,0.00011787,2]
[339215324,1727347832182,-150.0,0.00011804,2]
[339215325,1727347832193,-1000.0,0.0001183,2]
[339215326,1727347832203,-299.99,0.0001183,2]
[339215327,1727347832213,-150.0,0.00011875,2]
[339215329,1727347832223,-150.0,0.00011875,2]
[339215331,1727347832232,-213.69,0.00011887,2]
[339215333,1727347832242,-150.0,0.00011947,2]
[339215335,1727347832253,-150.0,0.00011952,2]
[339215337,1727347832270,-300.0,0.00011952,2]
[339215339,1727347832280,-300.0,0.00011953,2]
[339215341,1727347832290,-872.84,0.00011953,2]
[339215343,1727347832299,-821.62,0.00011953,2]
[339215345,1727347832309,-386.66,0.00011953,2]
[339215347,1727347832318,-523.53171808,0.00011953,2]
[339215349,1727347832330,-739.32803792,0.00011953,2]
[339215351,1727347832341,-1440.26954301,0.00011953,2]
[339215353,1727347832354,-2858.03867738,0.00011953,2]
[339215356,1727347837972,-499.99,0.00011804,2]
[339215357,1727347837982,-2762.33716529,0.00011953,2]
[339215364,1727347838056,-1676.48485832,0.00011953,2]
[339215366,1727347838066,-151.55,0.00011986,2]
[339215368,1727347838076,-150.0,0.00012018,2]
[339215370,1727347838087,-150.0,0.00012018,2]
[339215371,1727347838096,-150.0,0.0001209,2]
[339215372,1727347838105,-192.67345829,0.00012101,2]
[339215373,1727347838117,-48.68654171,0.00012101,2]
[339215374,1727347838126,-150.0,0.00012161,2]
[339215375,1727347838136,-150.0,0.00012161,2]
[339215376,1727347838145,-150.0,0.00012233,2]
[339215377,1727347838154,-150.0,0.00012233,2]
[339215378,1727347838164,-1256.22595138,0.00012255,2]
[339215379,1727347838174,-150.0,0.00012304,2]
[339215380,1727347838184,-150.0,0.00012304,2]
[339215381,1727347838194,-150.0,0.00012376,2]
[339215382,1727347838204,-154.049,0.00012376,2]
[339215383,1727347838214,-184.296,0.00012433,2]
[339215384,1727347838224,-206.74250691,0.00012433,2]
[339215385,1727347838265,-241.34767309,0.00012433,2]
[339215386,1727347838275,-150.0,0.00012447,2]
[339215387,1727347838285,-150.0,0.00012447,2]
[339215388,1727347838295,-150.0,0.00012519,2]
[339215389,1727347838304,-146.34306417,0.00012588,2]
[339215390,1727347838316,-301.74711583,0.00012588,2]
[339215391,1727347838326,-150.0,0.00012591,2]
[339215392,1727347838335,-150.0,0.00012591,2]
[339215393,1727347838345,-330.96523758,0.00012639,2]
[339215394,1727347838355,-150.0,0.00012662,2]
[339215395,1727347838365,-150.0,0.00012734,2]
[339215396,1727347838375,-150.0,0.00012734,2]
[339215397,1727347838385,-150.0,0.00012741,2]
[339215398,1727347838395,-184.296,0.00012743,2]
[339215399,1727347838406,-448.09018,0.00012743,2]
[339215400,1727347838416,-150.0,0.00012744,2]
[339215401,1727347838426,-150.0,0.00012763,2]
[339215402,1727347838435,-1035.27978436,0.00012785,2]
[339215403,1727347838453,-763.94545369,0.00012785,2]
[339215404,1727347838462,-2185.94163605,0.00012795,2]
[339215405,1727347838473,-2949.88708974,0.00012795,2]
[339215406,1727347838484,-1988.94713654,0.00012795,2]
[339215407,1727347838496,-2469.3332738,0.00012795,2]
[339215410,1727347839805,-383.05351288,0.00012795,2]
[339215411,1727347839943,-150.0,0.00012733,2]
[339215412,1727347839952,-451.40731094,0.00012795,2]
[339215413,1727347839963,-1824.59994005,0.00012795,2]
[339215414,1727347839972,-905.3344,0.00012795,2]
[339215415,1727347839981,-1000.0,0.00012799,2]
[339215416,1727347839990,-46.96565995,0.00012799,2]
[339215417,1727347840094,-4801.12694005,0.00012799,2]
[339215418,1727347840103,-2500.0,0.00012799,2]
[339215419,1727347840112,-686.66074357,0.000128,2]
[339215421,1727347840124,-13.20225643,0.000128,2]
[339215423,1727347840133,-887.23444517,0.000128,2]
[339215425,1727347840145,-9005.89455483,0.000128,2]
[339215427,1727347840154,-15137.6106,0.000128,2]
[339215429,1727347840164,-4090.8746,0.000128,2]
[339215431,1727347840173,-150.47536002,0.000128,2]
[339215433,1727347840182,-150.97,0.000128,2]
[339215435,1727347840192,-2647.062039,0.000128,2]
[339215437,1727347840201,-150.0,0.00012805,2]
[339215439,1727347840210,-150.0,0.0001286,2]
[339215440,1727347840219,-150.0,0.00012872,2]
[339215442,1727347840228,-500.0,0.00012873,2]
[339215444,1727347840236,-229.048,0.00012873,2]
[339215446,1727347840245,-166.398,0.00012873,2]
[339215448,1727347840254,-150.0,0.00012877,2]
[339215450,1727347840264,-150.0,0.00012877,2]
[339215452,1727347840275,-150.0,0.00012877,2]
[339215454,1727347840285,-150.0,0.00012886,2]
[339215456,1727347840295,-152.81,0.0001289,2]
[339215458,1727347840306,-2878.0369603,0.00012895,2]
[339215460,1727347840315,-1306.3116265,0.00012895,2]
[339215462,1727347840324,-320.9467796,0.00012895,2]
[339215464,1727347840334,-631.29837108,0.00012895,2]
[339215466,1727347840344,-500.0,0.00012898,2]
[339215468,1727347840354,-448.09018,0.00012899,2]
[339215470,1727347840365,-297.36950172,0.00012899,2]
[339215472,1727347840375,-274430.46308457,0.00012899,3]
[339215474,1727347840384,-54630.23429389,0.000129,2]
[339215477,1727347840396,-2950.69991356,0.000129,2]
[339215485,1727347840592,-1207.804,0.000129,2]
[339215486,1727347840604,-1181.9842508,0.000129,2]
[339215487,1727347840616,-662.12079801,0.000129,2]
[339215488,1727347840628,-460.02886184,0.000129,2]
[339215508,1727347843117,-5600.45753548,0.000129,2]
[339215512,1727347843129,-5722.24100985,0.000129,2]
[339215514,1727347843140,-11019.84486343,0.000129,2]
[339215516,1727347843150,-2347.71839077,0.000129,2]
[339215518,1727347843158,-20732.38472432,0.000129,2]
[339215520,1727347843169,-6377.06905138,0.000129,2]
[339215523,1727347843248,-28546.6046542,0.000129,2]
[339215524,1727347843259,-264.06999999,0.000129,2]
[339215525,1727347843273,-679.9439967,0.000129,2]
[339215526,1727347843376,-515.16797209,0.000129,2]
[339215527,1727347843389,-645.21,0.000129,2]
[339215528,1727347843400,-301.6,0.000129,2]
[339215529,1727347843413,-544.89694838,0.000129,2]
[339215531,1727347845825,-12913.901,0.000129,2]
[339215532,1727347845959,-1779.05696997,0.000129,2]
[339215533,1727347845973,-591.65999339,0.000129,2]
[339215534,1727347846089,-12366.20378309,0.000129,2]
[339215586,1727347857225,129850.084644,5.781e-05,7]
[339215587,1727347891047,500.0,0.00021,60]
[339215588,1727347893063,500.0,0.00021,60]
[339215589,1727347895239,210.74039177,0.00021,60]
[339215590,1727347897114,500.0,0.00021,60]
[339215591,1727347897840,500.0,0.00021,60]
[339215592,1727347908730,500.0,0.00021,60]
[339215593,1727347909005,198.75,0.00021,60]
[339215594,1727347911345,500.0,0.00021,60]
[339215595,1727347920493,500.0,0.00021,60]
[339215596,1727347922259,509.08,0.00021,60]
[339215597,1727347939539,500.0,0.00021,60]
[339215598,1727347939789,500.0,0.00021,60]
[339215599,1727347939926,500.0,0.00021,60]
[339215600,1727347940200,183.27,0.00021,60]
[339215601,1727347940264,500.0,0.00021,60]
[339215602,1727347948315,500.0,0.00021,60]
[339215603,1727347948884,500.0,0.00021,60]
[339215604,1727347949157,277.08,0.00021,60]
[339215606,1727347956705,500.0,0.00021,60]
[339215607,1727347958896,500.0,0.00021,60]
[339215609,1727347961684,500.0,0.00021,60]
[339215610,1727347962164,500.8574505,0.00021,60]
[339215612,1727347967762,500.0,0.00021,60]
[339215613,1727347971078,500.0,0.00021,60]
[339215614,1727347973287,500.0,0.00021,60]
[339215615,1727347975469,500.0,0.00021,60]
[339215616,1727347977698,500.0,0.00021,60]
[339215617,1727347984108,261.49494133,0.00021,60]
[339215618,1727348015580,161.85,0.00010959,2]
[339215619,1727348078950,227.13,9.982e-05,2]
[339215620,1727348445117,150.0,0.0001389,30]
[339215629,1727348653636,215.77,9.676e-05,2]
[339215631,1727348673414,154.26,0.00010959,2]
[339215632,1727348677115,1000.0,0.000155,120]
[339215633,1727348677141,838.81,0.000155,120]
[339215642,1727348921143,1050.0,0.00011,2]
[339215658,1727349032067,-165.63091281,0.00011242,2]
[339215659,1727349032077,-159.54,0.00011339,2]
[339215660,1727349032087,-194.78,0.00011342,2]
[339215661,1727349032097,-159.57,0.00011352,2]
[339215662,1727349032111,-250.0,0.00011354,2]
[339215663,1727349032122,-544.56018337,0.00011489,2]
[339215664,1727349032132,-200.0,0.00011554,2]
[339215665,1727349032141,-250.0,0.00011576,2]
[339215666,1727349032151,-150.0,0.00011589,2]
[339215667,1727349032161,-150.0,0.00011589,2]
[339215668,1727349032171,-150.0,0.00011589,2]
[339215669,1727349032179,-43.56768464,0.00011589,2]
[339215670,1727349032301,-106.43231536,0.00011589,2]
[339215671,1727349032312,-150.0,0.00011589,2]
[339215672,1727349032323,-150.00000001,0.00011589,2]
[339215673,1727349032332,-203.24,0.00011604,2]